bitfinex/quotes_SOLUSD_20251201
["timestamp","ask_amount","ask_price","bid_price","bid_amount"]
[1764584603020,13.24809875,127.56,127.53,23.56915583]
[1764584603220,4.43815383,127.54,127.52,7.84190715]
[1764584603422,3.46,127.53,127.52,7.84190715]
[1764584603627,4.15,127.53,127.52,7.84190715]
[1764584604327,4.15,127.53,127.5,7.84313725]
[1764584604328,8.58815383,127.53,127.5,7.84313725]
[1764584604521,0.69,127.52,127.5,7.84313725]
[1764584606527,4.12,127.53,127.5,7.84313725]
[1764584606732,4.12,127.53,127.5,4.43815383]
[1764584607232,0.66,127.53,127.5,4.43815383]
[1764584607406,4.12,127.53,127.5,4.43815383]
[1764584607825,3.46,127.53,127.5,4.43815383]
[1764584608031,4.17,127.53,127.5,4.43815383]
[1764584608309,3.46,127.53,127.5,4.43815383]
[1764584608613,0.71,127.52,127.5,4.43815383]
[1764584609012,0.71,127.52,127.5,12.28077604]
[1764584609433,0.71,127.52,127.5,7.84262221]
[1764584610230,27.44577247,127.55,127.51,4.43815383]
[1764584610428,3.46,127.53,127.51,4.43815383]
[1764584610636,3.46,127.53,127.5,4.43815383]
[1764584610828,4.17,127.53,127.5,4.43815383]
[1764584613532,4.17,127.53,127.51,7.84252215]
[1764584614350,4.17,127.53,127.51,12.28067598]
[1764584614633,0.71,127.55,127.51,12.28067598]
[1764584614835,29.28880892,127.56,127.53,4.43815383]
[1764584615016,0.71,127.55,127.53,4.43815383]
[1764584615437,0.71,127.55,127.52,4.43815383]
[1764584615640,0.71,127.55,127.52,12.27969669]
[1764584616440,0.71,127.55,127.52,7.84154286]
[1764584620454,13.24809875,127.54,127.5,7.84313725]
[1764584620632,4.43815383,127.52,127.5,7.84313725]
[1764584620950,13.24809875,127.52,127.48,7.8437644]
[1764584621145,0.71,127.51,127.48,7.8437644]
[1764584632038,5.14815383,127.51,127.48,7.8437644]
[1764584632240,0.71,127.5,127.48,7.8437644]
[1764584632834,0.71,127.5,127.47,7.84465689]
[1764584633041,4.17,127.5,127.47,7.84465689]
[1764584633236,8.60815383,127.5,127.47,7.84465689]
[1764584633435,8.60815383,127.5,127.46,7.84543024]
[1764584633436,0.71,127.49,127.46,7.84543024]
[1764584634160,0.71,127.49,127.46,12.28358407]
[1764584634361,0.71,127.49,127.46,10.68569585]
[1764584637960,0.71,127.49,127.46,30.29969239]
[1764584638562,4.18,127.5,127.46,30.29969239]
[1764584638761,0.72,127.49,127.46,30.29969239]
[1764584639652,0.72,127.5,127.46,30.29969239]
[1764584640145,0.72,127.49,127.46,30.29969239]
[1764584643166,0.72,127.49,127.46,27.45942678]
[1764584643363,40.23608743,127.52,127.47,2.84026561]
[1764584643560,7.02026561,127.51,127.46,30.29969239]
[1764584643746,2.84026561,127.5,127.46,27.45942678]
[1764584643947,3.56026561,127.5,127.46,27.45942678]
[1764584644260,0.72,127.49,127.46,27.45942678]
[1764584645767,0.72,127.49,127.46,30.29969239]
[1764584646654,0.72,127.49,127.46,22.45426215]
[1764584646854,0.72,127.49,127.46,19.61399654]
[1764584647359,0.72,127.49,127.46,22.45426215]
[1764584648666,0.72,127.49,127.46,30.29986076]
[1764584653876,0.72,127.49,127.46,10.68586422]
[1764584658378,0.72,127.49,127.45,27.46134975]
[1764584658676,0.72,127.49,127.46,2.84026561]
[1764584659178,0.72,127.5,127.48,2.84026561]
[1764584661265,0.72,127.5,127.47,27.45744096]
[1764584663784,0.72,127.5,127.47,30.29770657]
[1764584664481,0.72,127.5,127.47,27.45744096]
[1764584666081,0.72,127.5,127.47,30.29770657]
[1764584670497,4.17,127.51,127.48,10.68403642]
[1764584670682,3.46,127.51,127.48,10.68403642]
[1764584670877,0.71,127.5,127.48,10.68403642]
[1764584678595,0.71,127.5,127.47,27.45744096]
[1764584678792,0.71,127.5,127.48,2.84026561]
[1764584680995,0.71,127.5,127.48,10.6840575]
[1764584682795,7.84067743,127.54,127.49,2.84026561]
[1764584682994,7.84067743,127.54,127.48,30.91471124]
[1764584682995,0.67,127.53,127.52,2.84026561]
[1764584683396,0.67,127.53,127.51,2.84026561]
[1764584685202,0.67,127.53,127.51,10.68261427]
[1764584694393,0.67,127.53,127.51,12.27639274]
[1764584696912,0.67,127.53,127.52,4.43404408]
[1764584697315,0.7,127.54,127.52,4.43404408]
[1764584697504,0.7,127.54,127.53,4.43404408]
[1764584697906,0.7,127.54,127.53,12.27533632]
[1764584700015,8.80994492,127.57,127.53,12.27533632]
[1764584700325,0.7,127.56,127.54,4.43404408]
[1764584700805,0.7,127.56,127.53,12.27533632]
[1764584701411,5.13404408,127.56,127.53,7.84129224]
[1764584701716,0.7,127.56,127.53,7.84129224]
[1764584702024,0.7,127.55,127.53,7.84129224]
[1764584702226,0.7,127.55,127.53,4.43404408]
[1764584703818,0.7,127.55,127.54,7.84067743]
[1764584705227,0.7,127.55,127.52,19.60397589]
[1764584705429,0.7,127.55,127.53,4.43404408]
[1764584706430,0.7,127.55,127.54,7.84067743]
[1764584708932,0.7,127.55,127.52,27.44588304]
[1764584709233,0.7,127.55,127.53,4.43404408]
[1764584710932,0.7,127.55,127.53,12.27481343]
[1764584713520,88.243989,127.54,127.47,4.43404408]
[1764584713720,8.80994492,127.52,127.47,4.43404408]
[1764584713938,0.7,127.51,127.47,4.43404408]
[1764584714634,0.7,127.54,127.5,8.86808816]
[1764584714823,0.7,127.54,127.53,4.43404408]
[1764584715915,16.6491036,127.57,127.53,4.43404408]
[1764584716212,0.7,127.56,127.54,4.43404408]
[1764584716627,0.7,127.56,127.54,12.27462178]
[1764584720439,0.7,127.56,127.53,7.84129224]
[1764584720624,0.7,127.56,127.54,4.43404408]
[1764584721032,0.7,127.56,127.55,4.43404408]
[1764584721726,0.7,127.58,127.55,4.43404408]
[1764584721932,20.1877319,127.59,127.57,4.43404408]
[1764584722636,0.7,127.58,127.57,4.43404408]
[1764584726841,0.7,127.58,127.57,12.27287766]
[1764584727042,0.77,127.59,127.57,12.27287766]
[1764584727341,0.1,127.59,127.58,4.43404408]
[1764584727711,0.77,127.59,127.58,4.43404408]
[1764584729445,0.77,127.59,127.57,12.27287766]
[1764584731822,0.77,127.59,127.56,7.83913164]
[1764584732023,3.44,127.58,127.55,23.56730429]
[1764584732225,3.44,127.58,127.54,12.27424811]
[1764584732427,0.67,127.57,127.54,7.84020403]
[1764584732644,3.44,127.56,127.54,7.84020403]
[1764584733026,0.67,127.55,127.54,7.84020403]
[1764584734042,0.67,127.55,127.54,12.27424811]
[1764584734245,0.67,127.55,127.53,31.41202025]
[1764584734541,0.67,127.55,127.53,7.84101259]
[1764584734745,0.67,127.55,127.53,12.27505667]
[1764584735739,0.67,127.55,127.5,7.84313725]
[1764584735938,0.67,127.55,127.52,4.43404408]
[1764584736754,8.51007014,127.55,127.52,4.43404408]
[1764584737052,0.67,127.55,127.52,4.43404408]
[1764584737247,0.67,127.54,127.52,4.43404408]
[1764584738350,4.11,127.54,127.52,4.43404408]
[1764584738549,0.67,127.53,127.52,4.43404408]
[1764584740346,0.67,127.53,127.51,12.27606482]
[1764584740941,0.67,127.53,127.51,7.84202074]
[1764584741244,0.67,127.53,127.52,4.43404408]
[1764584742933,0.67,127.53,127.51,12.27606482]
[1764584743445,0.67,127.53,127.52,4.43404408]
[1764584743655,3.44,127.54,127.52,4.43404408]
[1764584745643,88.243989,127.56,127.54,4.43404408]
[1764584745644,0.67,127.56,127.54,4.43404408]
[1764584751160,0.67,127.56,127.53,12.27476025]
[1764584751358,8.50949934,127.56,127.53,12.27476025]
[1764584751740,0.67,127.55,127.53,12.27476025]
[1764584752263,0.67,127.56,127.54,4.43404408]
[1764584754444,0.67,127.56,127.54,2.83645415]
[1764584754635,24.14721902,127.58,127.54,10.67675826]
[1764584754835,0.1,127.59,127.57,2.83645415]
[1764584755358,0.77,127.59,127.57,2.83645415]
[1764584756456,0.77,127.59,127.56,7.83901039]
[1764584756649,0.77,127.59,127.56,10.67546454]
[1764584758043,15.08639907,127.58,127.54,2.83645415]
[1764584758361,15.08639907,127.58,127.54,10.67694429]
[1764584758554,0.7,127.57,127.54,10.67694429]
[1764584763765,0.7,127.57,127.55,2.83645415]
[1764584764168,12.0777255,127.59,127.56,2.83645415]
[1764584764352,0.7,127.58,127.56,2.83645415]
[1764584767141,11.3777255,127.59,127.57,2.83645415]
[1764584767142,0.1,127.59,127.57,2.83645415]
[1764584767343,0.7,127.58,127.57,2.83645415]
[1764584768467,0.7,127.58,127.56,10.67544967]
[1764584769460,0.1,127.59,127.57,3.50645415]
[1764584769654,0.1,127.59,127.58,2.83645415]
[1764584770046,0.1,127.59,127.57,3.50645415]
[1764584771163,0.1,127.59,127.57,11.344854]
[1764584772270,0.8,127.59,127.57,10.674854]
[1764584775762,0.8,127.59,127.56,3.50645415]
[1764584776564,8.63765852,127.59,127.54,11.95037706]
[1764584776760,11.47411267,127.59,127.54,10.67683121]
[1764584776964,0.7,127.58,127.54,11.34683121]
[1764584778173,8.53824967,127.58,127.54,11.34683121]
[1764584778668,0.7,127.57,127.54,11.34683121]
[1764584780751,0.7,127.57,127.54,7.84037706]
[1764584782876,8.5388642,127.57,127.54,7.84037706]
[1764584783173,11.9788642,127.57,127.54,7.84037706]
[1764584783377,0.7,127.56,127.54,7.84037706]
[1764584783754,3.53645415,127.56,127.53,7.84114835]
[1764584784257,0.7,127.55,127.53,7.84114835]
[1764584786577,0.7,127.55,127.53,10.6776025]
[1764584790281,0.7,127.55,127.53,7.84114835]
[1764584791377,0.7,127.55,127.53,10.6776025]
[1764584794583,0.7,127.55,127.53,7.84114835]
[1764584794900,0.7,127.55,127.53,10.6776025]
[1764584797575,7.83832566,127.58,127.54,2.83645415]
[1764584797771,0.69,127.57,127.55,2.83645415]
[1764584797974,4.13,127.58,127.55,3.50645415]
[1764584798281,0.69,127.57,127.56,7.8394481]
[1764584798483,0.69,127.57,127.52,11.95159478]
[1764584798484,11.36552722,127.57,127.52,11.95159478]
[1764584798671,8.52907307,127.57,127.53,2.83645415]
[1764584798875,0.69,127.56,127.54,2.83645415]
[1764584802392,0.69,127.56,127.53,11.34714447]
[1764584803489,0.69,127.56,127.53,10.67714447]
[1764584804585,0.69,127.56,127.53,11.34714447]
[1764584806089,0.69,127.56,127.53,7.84069032]
[1764584806407,0.69,127.56,127.53,11.34714447]
[1764584806867,0.69,127.56,127.53,7.84069032]
[1764584810205,8.52949025,127.56,127.53,7.84069032]
[1764584810874,0.69,127.55,127.53,7.84069032]
[1764584814817,0.69,127.55,127.53,10.67714447]
[1764584816425,0.69,127.55,127.53,12.27378614]
[1764584818101,0.69,127.55,127.53,7.84069032]
[1764584820620,0.14216157,127.55,127.53,8.51069032]
[1764584820824,0.14216157,127.55,127.54,0.67]
[1764584821825,0.81216157,127.55,127.53,12.27378614]
[1764584822021,0.81216157,127.55,127.53,12.94378614]
[1764584822225,0.14216157,127.55,127.53,12.94378614]
[1764584826827,0.14216157,127.56,127.53,7.84069032]
[1764584827129,0.81216157,127.54,127.53,7.84069032]
[1764584828934,0.67,127.54,127.53,7.84069032]
[1764584832235,0.67,127.54,127.52,39.28752948]
[1764584832545,0.67,127.54,127.52,39.95752948]
[1764584833026,0.67,127.54,127.52,7.84157388]
[1764584834639,7.83946576,127.56,127.52,12.9446697]
[1764584834840,0.67,127.54,127.52,7.84157388]
[1764584835540,0.67,127.54,127.52,12.2746697]
[1764584835920,0.67,127.54,127.52,7.84157388]
[1764584842442,8.50946576,127.56,127.53,0.67]
[1764584842636,0.67,127.55,127.52,7.84157388]
[1764584842828,0.67,127.55,127.52,12.2746697]
[1764584843732,0.67,127.55,127.52,12.9446697]
[1764584844254,0.67,127.55,127.52,8.51157388]
[1764584845851,0.67,127.55,127.52,7.84157388]
[1764584848454,0.67,127.55,127.52,12.9446697]
[1764584851236,0.67,127.55,127.52,12.2746697]
[1764584853640,8.51017012,127.55,127.52,7.84157388]
[1764584854161,0.69,127.54,127.52,7.84157388]
[1764584854662,0.69,127.54,127.5,11.2825255]
[1764584854856,0.69,127.54,127.5,19.15562132]
[1764584855238,0.69,127.54,127.5,23.58871714]
[1764584855643,0.69,127.54,127.5,24.25871714]
[1764584858878,0.69,127.54,127.5,43.86656027]
[1764584860157,0.69,127.54,127.51,4.43309582]
[1764584861468,0.69,127.54,127.52,7.84190715]
[1764584863875,0.69,127.54,127.51,7.84252215]
[1764584864174,0.69,127.54,127.51,12.27561797]
[1764584864384,0.69,127.54,127.51,7.84252215]
[1764584864877,0.69,127.54,127.51,12.27561797]
[1764584869670,0.69,127.54,127.51,7.84252215]
[1764584879180,0.69,127.54,127.51,10.68082109]
[1764584880668,0.69,127.54,127.51,7.84252215]
[1764584885491,2.83829894,127.53,127.5,7.87309582]
[1764584885691,2.83829894,127.51,127.46,10.68389755]
[1764584885896,11.64824386,127.51,127.46,30.96789409]
[1764584886074,0.72,127.5,127.47,2.83829894]
[1764584886277,0.72,127.5,127.47,3.50829894]
[1764584887871,0.72,127.5,127.48,7.84436774]
[1764584890193,0.72,127.5,127.47,11.35304425]
[1764584891097,0.72,127.5,127.47,8.51474531]
[1764584894585,0.72,127.5,127.47,7.84474531]
[1764584895402,0.72,127.5,127.47,8.51474531]
[1764584896603,8.80994492,127.51,127.47,7.84474531]
[1764584896902,122.73422213,127.53,127.48,3.50829894]
[1764584896903,0.72,127.5,127.48,3.50829894]
[1764584897080,0.72,127.5,127.48,2.83829894]
[1764584898196,0.72,127.51,127.48,2.83829894]
[1764584898376,0.72,127.51,127.48,3.50829894]
[1764584899117,0.72,127.52,127.49,3.50829894]
[1764584899397,0.72,127.51,127.49,0.67]
[1764584899695,12.36824386,127.53,127.5,0.67]
[1764584899895,0.72,127.52,127.5,0.67]
[1764584901905,0.72,127.52,127.5,7.84313725]
[1764584904911,0.72,127.52,127.49,7.84375245]
[1764584912108,0.71,127.56,127.51,2.83829894]
[1764584912301,0.71,127.58,127.55,2.83829894]
[1764584912805,0.71,127.58,127.55,3.50829894]
[1764584913890,0.71,127.58,127.56,7.8394481]
[1764584916013,0.71,127.58,127.55,10.67836166]
[1764584916708,0.1,127.59,127.57,2.83829894]
[1764584916909,0.81,127.59,127.57,2.83829894]
[1764584918100,0.81,127.59,127.58,7.83821915]
[1764584918290,0.81,127.59,127.56,20.26818712]
[1764584918291,0.81,127.59,127.57,10.67713252]
[1764584918489,0.81,127.59,127.57,7.83883358]
[1764584920908,0.1,127.59,127.58,2.83829894]
[1764584921501,0.81,127.59,127.57,11.34713252]
[1764584922094,0.81,127.59,127.57,10.67713252]
[1764584922913,0.81,127.59,127.57,7.83883358]
[1764584923221,0.81,127.59,127.57,10.67713252]
[1764584924913,0.81,127.59,127.57,7.83883358]
[1764584925922,0.81,127.59,127.54,12.41824386]
[1764584926118,0.81,127.59,127.55,7.84006272]
[1764584926119,3.64829894,127.59,127.55,7.84006272]
[1764584926418,0.81,127.59,127.55,10.67836166]
[1764584926724,0.71,127.58,127.55,10.67836166]
[1764584928822,12.24994492,127.57,127.53,10.67959118]
[1764584929000,0.71,127.56,127.53,10.67959118]
[1764584930602,0.71,127.56,127.53,11.34959118]
[1764584932241,0.71,127.56,127.53,10.67959118]
[1764584932803,0.71,127.56,127.53,11.34959118]
[1764584936134,0.71,127.56,127.53,30.95282179]
[1764584936422,0.71,127.56,127.54,5.10235222]
[1764584936929,0.71,127.56,127.54,4.43235222]
[1764584938430,0.71,127.56,127.55,7.84006272]
[1764584941229,0.66,127.58,127.55,5.10235222]
[1764584941431,0.66,127.58,127.56,4.43235222]
[1764584941625,0.66,127.58,127.55,5.10235222]
[1764584942024,0.66,127.58,127.55,4.43235222]
[1764584942432,0.66,127.58,127.56,7.8394481]
[1764584943828,0.66,127.58,127.55,7.84006272]
[1764584944037,0.66,127.58,127.55,12.94241494]
[1764584944839,0.1,127.59,127.56,5.10235222]
[1764584945015,0.76,127.59,127.56,5.10235222]
[1764584945810,0.76,127.59,127.57,7.83883358]
[1764584948437,0.76,127.59,127.57,12.9411858]
[1764584949432,0.1,127.59,127.57,32.53826975]
[1764584949637,0.76,127.59,127.57,31.86826975]
[1764584951326,0.76,127.59,127.57,27.43591753]
[1764584955532,0.76,127.59,127.57,32.53826975]
[1764584955731,0.76,127.59,127.57,31.86826975]
[1764584957918,0.1,127.59,127.57,32.53826975]
[1764584958321,0.76,127.59,127.57,32.53826975]
[1764584959139,0.76,127.59,127.57,31.86826975]
[1764584960746,0.76,127.59,127.57,27.43591753]
[1764584964246,0.76,127.59,127.57,31.86826975]
[1764584969649,0.76,127.59,127.57,27.43591753]
[1764584976453,0.76,127.59,127.57,31.86826975]
[1764584977363,4.10994492,127.61,127.57,31.86826975]
[1764584977860,3.44,127.61,127.57,28.15591753]
[1764584978046,3.44,127.61,127.57,32.58826975]
[1764584978237,3.44,127.61,127.57,28.15591753]
[1764584978439,7.87235222,127.61,127.57,28.15591753]
[1764584979562,0.69,127.6,127.57,28.15591753]
[1764584982863,0.69,127.6,127.57,32.58826975]
[1764584988771,0.69,127.6,127.57,19.59708395]
[1764584993174,0.69,127.6,127.57,27.43591753]
[1764584994976,0.69,127.6,127.57,7.83883358]
[1764584998887,0.69,127.6,127.57,0.7]
[1764585000478,0.69,127.6,127.56,10.67536484]
[1764585000680,0.69,127.6,127.56,8.5394481]
[1764585001066,0.69,127.6,127.57,0.7]
[1764585001981,8.80994492,127.59,127.56,7.8394481]
[1764585002482,11.64586166,127.57,127.52,28.14528142]
[1764585002784,2.83591674,127.55,127.52,28.14528142]
[1764585003360,3.55591674,127.55,127.52,28.14528142]
[1764585003587,0.72,127.54,127.52,28.14528142]
[1764585003781,6.27591674,127.55,127.52,28.14528142]
[1764585004081,6.99591674,127.55,127.52,28.14528142]
[1764585004287,4.16,127.55,127.52,28.14528142]
[1764585004873,4.16,127.55,127.53,0.7]
[1764585005086,4.16,127.55,127.52,28.14528142]
[1764585006292,4.16,127.55,127.52,27.44528142]
[1764585006596,4.16,127.55,127.53,0.7]
[1764585007589,0.72,127.58,127.54,2.83591674]
[1764585007788,0.72,127.57,127.54,2.83591674]
[1764585008094,0.72,127.57,127.55,0.7]
[1764585008461,0.72,127.57,127.55,8.53981817]
[1764585008672,0.72,127.57,127.55,7.83981817]
[1764585009392,11.39488902,127.57,127.53,27.44312245]
[1764585009580,6.27591674,127.56,127.53,7.84072572]
[1764585009897,6.99591674,127.56,127.53,7.84072572]
[1764585010070,0.72,127.55,127.53,8.54072572]
[1764585012291,0.72,127.55,127.53,7.84072572]
[1764585012590,0.72,127.55,127.5,3.44]
[1764585012782,0.72,127.55,127.52,2.83591674]
[1764585013294,0.72,127.55,127.53,0.7]
[1764585013886,0.72,127.55,127.53,8.54117859]
[1764585015200,3.44,127.56,127.53,8.54117859]
[1764585015378,4.16,127.56,127.53,11.37709533]
[1764585016300,0.72,127.55,127.53,11.37709533]
[1764585016979,0.72,127.55,127.53,8.54117859]
[1764585017180,4.16,127.56,127.53,8.54117859]
[1764585017380,0.72,127.55,127.53,8.54117859]
[1764585017617,4.16,127.56,127.53,8.54117859]
[1764585018824,3.44,127.56,127.53,8.54117859]
[1764585018987,0.72,127.55,127.53,8.54117859]
[1764585022303,0.72,127.55,127.52,7.84190715]
[1764585022492,0.72,127.55,127.52,8.54190715]
[1764585027023,33.67766172,127.57,127.53,0.68]
[1764585027322,4.16,127.56,127.52,28.12667502]
[1764585027702,0.68,127.55,127.52,27.44667502]
[1764585027996,0.68,127.55,127.53,0.71]
[1764585030311,0.68,127.55,127.53,8.55104975]
[1764585036116,0.68,127.55,127.52,27.44667502]
[1764585036413,0.68,127.55,127.53,0.71]
[1764585038521,0.68,127.55,127.53,8.55086587]
[1764585043217,71.47471219,127.59,127.52,19.60476787]
[1764585043218,0.14216157,127.54,127.52,30.88667502]
[1764585043417,12.92994492,127.59,127.52,89.70097864]
[1764585043723,0.82216157,127.58,127.53,0.71]
[1764585044499,0.82216157,127.58,127.55,2.83591674]
[1764585045126,0.82216157,127.58,127.55,3.54591674]
[1764585045914,0.82216157,127.58,127.56,7.8394481]
[1764585046920,0.14216157,127.56,127.54,27.44053396]
[1764585047300,0.82216157,127.56,127.54,27.44053396]
[1764585048525,0.82216157,127.56,127.54,28.15053396]
[1764585049810,0.82216157,127.58,127.55,3.54591674]
[1764585050007,12.24994492,127.59,127.56,2.83591674]
[1764585050313,0.14216157,127.58,127.56,3.54591674]
[1764585050714,0.14216157,127.58,127.57,3.54591674]
[1764585051408,0.14216157,127.58,127.57,2.83591674]
[1764585051907,0.82216157,127.58,127.57,7.83883358]
[1764585053706,0.82216157,127.59,127.57,7.83883358]
[1764585055327,0.82216157,127.59,127.56,8.54913091]
[1764585055505,8.65981974,127.59,127.56,7.83913091]
[1764585055709,0.14216157,127.57,127.55,7.83981555]
[1764585055907,3.58216157,127.57,127.55,7.83981555]
[1764585056113,0.14216157,127.55,127.54,7.84035601]
[1764585058931,0.14216157,127.55,127.54,0.66]
[1764585060936,0.14216157,127.55,127.54,8.50067743]
[1764585061315,0.80216157,127.55,127.54,7.84067743]
[1764585064811,0.14216157,127.55,127.54,8.50067743]
[1764585065139,0.14216157,127.55,127.54,7.84067743]
[1764585065538,0.14216157,127.55,127.54,12.27395927]
[1764585065714,0.14216157,127.55,127.54,12.93395927]
[1764585068545,0.14216157,127.55,127.54,12.27395927]
[1764585069245,0.14216157,127.55,127.54,7.84067743]
[1764585072450,0.14216157,127.55,127.54,8.50067743]
[1764585073830,0.14216157,127.55,127.54,7.84067743]
[1764585078143,0.14216157,127.55,127.54,12.27395927]
[1764585078754,4.1,127.58,127.54,32.53565285]
[1764585078959,4.1,127.58,127.56,4.43328184]
[1764585079138,0.14216157,127.57,127.56,4.43328184]
[1764585079334,0.66,127.59,127.56,12.27272994]
[1764585079650,0.14216157,127.58,127.56,12.27272994]
[1764585079959,0.66,127.61,127.57,5.09328184]
[1764585080140,0.1,127.62,127.6,4.43328184]
[1764585080346,0.1,127.62,127.61,4.43328184]
[1764585080533,0.1,127.62,127.6,4.43328184]
[1764585081040,0.24216157,127.62,127.6,5.09328184]
[1764585081245,0.24216157,127.62,127.61,7.83637645]
[1764585081756,0.76,127.62,127.61,7.83637645]
[1764585081960,0.90216157,127.62,127.61,7.83637645]
[1764585082956,0.14216157,127.61,127.6,7.83699059]
[1764585084854,17.48538833,127.61,127.58,7.83776634]
[1764585085279,0.14216157,127.59,127.58,7.83776634]
[1764585085566,13.38538833,127.59,127.57,7.83852101]
[1764585085760,0.80216157,127.58,127.57,7.83852101]
[1764585087049,0.14216157,127.57,127.56,7.8394481]
[1764585092867,0.14216157,127.57,127.56,12.27272994]
[1764585093052,0.14216157,127.57,127.56,12.94272994]
[1764585094770,0.14216157,127.57,127.56,12.27272994]
[1764585095866,0.14216157,127.58,127.56,32.54135019]
[1764585096074,0.68,127.6,127.57,5.10328184]
[1764585096450,0.14216157,127.59,127.57,5.10328184]
[1764585096975,0.82216157,127.59,127.58,7.83821915]
[1764585099070,0.82216157,127.59,127.56,4.43328184]
[1764585099071,9.63210649,127.59,127.56,4.43328184]
[1764585099253,9.63210649,127.59,127.56,7.83942433]
[1764585099452,0.14216157,127.57,127.56,7.83942433]
[1764585100070,0.14216157,127.57,127.56,12.94270617]
[1764585101574,0.14216157,127.58,127.56,32.54132642]
[1764585101759,0.14216157,127.58,127.57,4.43328184]
[1764585102070,0.14216157,127.58,127.57,12.94211542]
[1764585103276,0.14216157,127.58,127.57,7.83883358]
[1764585103570,0.82216157,127.58,127.57,7.83883358]
[1764585104765,0.14216157,127.58,127.57,7.83883358]
[1764585117594,0.14216157,127.58,127.57,12.94211542]
[1764585118598,0.7,127.61,127.57,32.53919937]
[1764585118801,0.14216157,127.6,127.58,5.10328184]
[1764585119120,0.14216157,127.6,127.58,4.43328184]
[1764585119299,0.7,127.6,127.58,4.43328184]
[1764585119499,0.14216157,127.59,127.58,4.43328184]
[1764585120231,0.14216157,127.59,127.58,5.10328184]
[1764585120422,0.14216157,127.59,127.58,11.3428803]
[1764585120721,0.1,127.62,127.58,30.93842819]
[1764585120924,0.1,127.62,127.61,2.83466115]
[1764585121224,0.24216157,127.62,127.61,2.83466115]
[1764585121725,0.1,127.62,127.61,3.50466115]
[1764585122517,0.1,127.62,127.61,11.3410376]
[1764585123710,0.1,127.62,127.61,8.50637645]
[1764585123927,0.1,127.62,127.61,11.3410376]
[1764585124328,0.1,127.62,127.61,8.50637645]
[1764585124514,0.1,127.62,127.61,11.3410376]
[1764585125411,0.1,127.62,127.61,14.7810376]
[1764585125727,0.1,127.63,127.62,16.308864]
[1764585126028,0.1,127.64,127.63,19.14352515]
[1764585126204,0.1,127.64,127.63,23.25352515]
[1764585126621,0.1,127.64,127.63,26.39311935]
[1764585126924,0.1,127.64,127.63,34.22826782]
[1764585129733,0.1,127.64,127.63,31.39360667]
[1764585129913,0.1,127.64,127.63,31.08867362]
[1764585131164,0.1,127.64,127.63,14.10980962]
[1764585131325,0.94216157,127.64,127.63,7.83514847]
[1764585131526,0.94216157,127.64,127.63,10.66980962]
[1764585133237,0.24216157,127.64,127.63,10.66980962]
[1764585133938,0.1,127.64,127.63,14.77980962]
[1764585134957,0.1,127.64,127.63,14.10980962]
[1764585135129,0.1,127.64,127.63,14.77980962]
[1764585136439,0.24216157,127.64,127.63,14.77980962]
[1764585136850,0.1,127.64,127.63,14.77980962]
[1764585137939,0.1,127.65,127.64,2.83466115]
[1764585138154,0.1,127.65,127.64,11.33919577]
[1764585138545,0.1,127.65,127.64,14.47878997]
[1764585138743,0.1,127.65,127.64,11.64412882]
[1764585138933,0.1,127.67,127.64,34.06512654]
[1764585139133,0.1,127.67,127.66,2.83466115]
[1764585139654,0.1,127.67,127.66,3.50466115]
[1764585140444,0.1,127.67,127.66,11.33796837]
[1764585140633,0.24216157,127.67,127.66,11.33796837]
[1764585142136,0.1,127.67,127.66,11.33796837]
[1764585146852,0.94216157,127.67,127.66,7.83330722]
[1764585147062,0.24216157,127.67,127.66,7.83330722]
[1764585149138,0.24216157,127.67,127.66,7.66820722]
[1764585149339,0.24216157,127.67,127.66,8.37820722]
[1764585150056,0.24216157,127.67,127.66,7.66820722]
[1764585151049,0.24216157,127.67,127.66,8.37820722]
[1764585151542,0.24216157,127.67,127.66,7.66820722]
[1764585152860,0.24216157,127.67,127.66,11.21286837]
[1764585155342,0.91216157,127.67,127.66,7.66820722]
[1764585155661,0.24216157,127.67,127.66,11.21286837]